[Event "Titled Tuesday Blitz January 03 Early 2023"]
[White "De Souza Sa, Apolo"]
[Black "Krstic, Milos"]
[WhiteFideId "324225390"]
[BlackFideId "954888"]
[WhiteElo "1929"]
[BlackElo "2183"]
[Result "0-1"]
[Round "04"]
[TimeControl "180+2"]
[Date "2023.01.03"]
[WhiteClock "0:00:04"]
[BlackClock "0:01:15"]

1. d4 {[%clk 0:03:00]}  Nf6 {[%clk 0:02:58]} 2. c4 {[%clk 0:03:01]}  g6 {[%clk 0:02:59]} 3. f3 {[%clk 0:03:01]}  Bg7 {[%clk 0:02:57]} 4. e4 {[%clk 0:03:01]}  d6 {[%clk 0:02:57]} 5. Nc3 {[%clk 0:03:02]}  O-O {[%clk 0:02:55]} 6. Nge2 {[%clk 0:03:03]}  Nc6 {[%clk 0:02:55]} 7. Be3 {[%clk 0:03:01]}  e5 {[%clk 0:02:55]} 8. d5 {[%clk 0:03:00]}  Ne7 {[%clk 0:02:56]} 9. Qd2 {[%clk 0:03:00]}  b6 {[%clk 0:02:53]} 10. g4 {[%clk 0:02:56]}  Ne8 {[%clk 0:02:52]} 11. Ng3 {[%clk 0:02:55]}  f5 {[%clk 0:02:49]} 12. exf5 {[%clk 0:02:54]}  gxf5 {[%clk 0:02:49]} 13. gxf5 {[%clk 0:02:55]}  Nxf5 {[%clk 0:02:49]} 14. Nxf5 {[%clk 0:02:52]}  Bxf5 {[%clk 0:02:49]} 15. O-O-O {[%clk 0:02:42]}  Kh8 {[%clk 0:02:45]} 16. Bh6 {[%clk 0:02:34]}  Qf6 {[%clk 0:02:42]} 17. Bxg7+ {[%clk 0:02:32]}  Nxg7 {[%clk 0:02:42]} 18. Be2 {[%clk 0:02:30]}  a6 {[%clk 0:02:41]} 19. Rdg1 {[%clk 0:02:27]}  Nh5 {[%clk 0:02:40]} 20. Rg5 {[%clk 0:02:13]}  Nf4 {[%clk 0:02:40]} 21. Rhg1 {[%clk 0:02:12]}  Rg8 {[%clk 0:02:40]} 22. Rxg8+ {[%clk 0:01:56]}  Rxg8 {[%clk 0:02:40]} 23. Rxg8+ {[%clk 0:01:56]}  Kxg8 {[%clk 0:02:40]} 24. Ne4 {[%clk 0:01:57]}  Bxe4 {[%clk 0:02:40]} 25. fxe4 {[%clk 0:01:58]}  Qg5 {[%clk 0:02:37]} 26. Bf3 {[%clk 0:01:44]}  Qg1+ {[%clk 0:02:34]} 27. Kc2 {[%clk 0:01:43]}  Kf7 {[%clk 0:02:29]} 28. Kb3 {[%clk 0:01:35]}  Kf6 {[%clk 0:02:24]} 29. a3 {[%clk 0:01:34]}  Qd4 {[%clk 0:02:18]} 30. Qc3 {[%clk 0:00:55]}  Kg5 {[%clk 0:02:10]} 31. Kc2 {[%clk 0:00:42]}  Qxc3+ {[%clk 0:02:07]} 32. Kxc3 {[%clk 0:00:42]}  Kh4 {[%clk 0:02:07]} 33. b4 {[%clk 0:00:39]}  Kh3 {[%clk 0:02:07]} 34. c5 {[%clk 0:00:38]}  Kxh2 {[%clk 0:02:00]} 35. Bg4 {[%clk 0:00:29]}  h5 {[%clk 0:01:57]} 36. Bc8 {[%clk 0:00:28]}  a5 {[%clk 0:01:46]} 37. bxa5 {[%clk 0:00:21]}  bxa5 {[%clk 0:01:45]} 38. cxd6 {[%clk 0:00:20]}  cxd6 {[%clk 0:01:46]} 39. Kc4 {[%clk 0:00:20]}  Ne2 {[%clk 0:01:35]} 40. Kb5 {[%clk 0:00:20]}  Nc3+ {[%clk 0:01:35]} 41. Kxa5 {[%clk 0:00:19]}  Nxe4 {[%clk 0:01:36]} 42. Kb6 {[%clk 0:00:19]}  Nc5 {[%clk 0:01:36]} 43. Kc6 {[%clk 0:00:17]}  e4 {[%clk 0:01:32]} 44. Kxd6 {[%clk 0:00:10]}  e3 {[%clk 0:01:32]} 45. Kxc5 {[%clk 0:00:10]}  e2 {[%clk 0:01:33]} 46. d6 {[%clk 0:00:11]}  e1=Q {[%clk 0:01:33]} 47. d7 {[%clk 0:00:11]}  Qe7+ {[%clk 0:01:34]} 48. Kc6 {[%clk 0:00:11]}  Qd8 {[%clk 0:01:34]} 49. a4 {[%clk 0:00:09]}  Kg3 {[%clk 0:01:34]} 50. Kd6 {[%clk 0:00:09]}  h4 {[%clk 0:01:33]} 51. Bb7 {[%clk 0:00:09]}  h3 {[%clk 0:01:31]} 52. Bc6 {[%clk 0:00:10]}  h2 {[%clk 0:01:30]} 53. a5 {[%clk 0:00:10]}  Qxa5 {[%clk 0:01:30]} 54. Ke7 {[%clk 0:00:10]}  Qc5+ {[%clk 0:01:30]} 55. Kf7 {[%clk 0:00:08]}  Qxc6 {[%clk 0:01:25]} 56. d8=Q {[%clk 0:00:08]}  h1=Q {[%clk 0:01:24]} 57. Qg5+ {[%clk 0:00:09]}  Kf2 {[%clk 0:01:23]} 58. Qd2+ {[%clk 0:00:09]}  Kf3 {[%clk 0:01:18]} 59. Qd3+ {[%clk 0:00:08]}  Kf4 {[%clk 0:01:17]} 60. Qd2+ {[%clk 0:00:08]}  Kf5 {[%clk 0:01:15]} 61. Qa5+ {[%clk 0:00:05]}  Qhd5+ {[%clk 0:01:14]} 62. Qxd5+ {[%clk 0:00:04]}  Qxd5+ {[%clk 0:01:15]} 0-1


[Site "https://www.chess.com"]

[Event "Titled Tuesday Blitz January 03 Early 2023"]
[White "Moreno Perez, Tobias Sebastian"]
[Black "Blokhin, Sofia"]
[WhiteFideId "186716"]
[BlackFideId "4508190"]
[WhiteElo "2256"]
[BlackElo "2062"]
[Result "0-1"]
[Round "04"]
[TimeControl "180+2"]
[Date "2023.01.03"]
[WhiteClock "0:01:28"]
[BlackClock "0:01:27"]

1. d4 {[%clk 0:03:00]}  Nf6 {[%clk 0:02:56]} 2. Bf4 {[%clk 0:03:01]}  g6 {[%clk 0:02:51]} 3. Nc3 {[%clk 0:02:59]}  Bg7 {[%clk 0:02:51]} 4. e4 {[%clk 0:02:59]}  d6 {[%clk 0:02:50]} 5. Qd2 {[%clk 0:02:59]}  O-O {[%clk 0:02:50]} 6. Bh6 {[%clk 0:02:58]}  Nc6 {[%clk 0:02:48]} 7. Nge2 {[%clk 0:02:55]}  e5 {[%clk 0:02:44]} 8. d5 {[%clk 0:02:54]}  Nd4 {[%clk 0:02:36]} 9. Bxg7 {[%clk 0:02:53]}  Kxg7 {[%clk 0:02:30]} 10. Nxd4 {[%clk 0:02:53]}  exd4 {[%clk 0:02:28]} 11. Qxd4 {[%clk 0:02:54]}  Re8 {[%clk 0:02:28]} 12. Bd3 {[%clk 0:02:52]}  c5 {[%clk 0:02:25]} 13. dxc6 {[%clk 0:02:51]}  bxc6 {[%clk 0:02:25]} 14. O-O {[%clk 0:02:52]}  c5 {[%clk 0:02:23]} 15. Qa4 {[%clk 0:02:48]}  Bd7 {[%clk 0:02:20]} 16. Qa6 {[%clk 0:02:45]}  Be6 {[%clk 0:02:09]} 17. b3 {[%clk 0:02:41]}  Ng4 {[%clk 0:02:03]} 18. Nb5 {[%clk 0:02:35]}  d5 {[%clk 0:01:57]} 19. exd5 {[%clk 0:02:21]}  Bxd5 {[%clk 0:01:57]} 20. Rad1 {[%clk 0:02:22]}  Qg5 {[%clk 0:01:47]} 21. f4 {[%clk 0:01:29]}  Qh4 {[%clk 0:01:37]} 22. h3 {[%clk 0:01:29]}  Qg3 {[%clk 0:01:28]} 23. Rd2 {[%clk 0:01:28]}  Qh2# {[%clk 0:01:27]} 0-1


[Site "https://www.chess.com"]

[Event "Titled Tuesday Blitz January 03 Early 2023"]
[White "Ardila, Oscar Humberto"]
[Black "Jovic, Stanoje"]
[WhiteFideId "4404742"]
[BlackFideId "905020"]
[WhiteElo "1982"]
[BlackElo "2075"]
[Result "0-1"]
[Round "04"]
[TimeControl "180+2"]
[Date "2023.01.03"]
[WhiteClock "0:00:06"]
[BlackClock "0:00:42"]

1. d4 {[%clk 0:03:00]}  Nf6 {[%clk 0:02:59]} 2. c4 {[%clk 0:03:00]}  e6 {[%clk 0:02:59]} 3. Nc3 {[%clk 0:02:59]}  Bb4 {[%clk 0:02:58]} 4. Bd2 {[%clk 0:03:00]}  O-O {[%clk 0:02:58]} 5. Nf3 {[%clk 0:03:00]}  b6 {[%clk 0:02:57]} 6. e3 {[%clk 0:03:00]}  Bb7 {[%clk 0:02:57]} 7. Be2 {[%clk 0:03:00]}  d5 {[%clk 0:02:55]} 8. O-O {[%clk 0:02:59]}  Nbd7 {[%clk 0:02:55]} 9. Rc1 {[%clk 0:02:58]}  c5 {[%clk 0:02:54]} 10. a3 {[%clk 0:02:56]}  Bxc3 {[%clk 0:02:52]} 11. Bxc3 {[%clk 0:02:57]}  Ne4 {[%clk 0:02:49]} 12. Be1 {[%clk 0:02:55]}  Rc8 {[%clk 0:02:42]} 13. cxd5 {[%clk 0:02:54]}  exd5 {[%clk 0:02:41]} 14. dxc5 {[%clk 0:02:54]}  bxc5 {[%clk 0:02:40]} 15. Nd2 {[%clk 0:02:54]}  Ndf6 {[%clk 0:02:37]} 16. Nxe4 {[%clk 0:02:54]}  Nxe4 {[%clk 0:02:35]} 17. f3 {[%clk 0:02:53]}  Nd6 {[%clk 0:02:31]} 18. Bf2 {[%clk 0:02:53]}  Re8 {[%clk 0:02:28]} 19. Qa4 {[%clk 0:02:48]}  Qb6 {[%clk 0:02:17]} 20. b4 {[%clk 0:02:40]}  c4 {[%clk 0:02:08]} 21. Qc2 {[%clk 0:02:24]}  Rxe3 {[%clk 0:02:01]} 22. Bxe3 {[%clk 0:02:22]}  Qxe3+ {[%clk 0:02:01]} 23. Kh1 {[%clk 0:02:23]}  Qxa3 {[%clk 0:01:57]} 24. Ra1 {[%clk 0:02:18]}  Qxb4 {[%clk 0:01:57]} 25. Rxa7 {[%clk 0:02:13]}  Qc5 {[%clk 0:01:52]} 26. Rfa1 {[%clk 0:01:45]}  d4 {[%clk 0:01:45]} 27. Bf1 {[%clk 0:01:43]}  Bd5 {[%clk 0:01:38]} 28. R7a5 {[%clk 0:01:30]}  Qc6 {[%clk 0:01:35]} 29. Ra6 {[%clk 0:01:23]}  Qd7 {[%clk 0:01:27]} 30. Ra7 {[%clk 0:01:15]}  Qe6 {[%clk 0:01:27]} 31. Qd2 {[%clk 0:01:09]}  d3 {[%clk 0:01:18]} 32. Re1 {[%clk 0:01:07]}  Qf6 {[%clk 0:01:18]} 33. Qb4 {[%clk 0:00:56]}  g6 {[%clk 0:01:11]} 34. Ra6 {[%clk 0:00:52]}  Rd8 {[%clk 0:01:11]} 35. Qb6 {[%clk 0:00:35]}  Kg7 {[%clk 0:00:59]} 36. Qc5 {[%clk 0:00:34]}  Bb7 {[%clk 0:00:49]} 37. Rb6 {[%clk 0:00:32]}  d2 {[%clk 0:00:48]} 38. Rd1 {[%clk 0:00:32]}  c3 {[%clk 0:00:49]} 39. Rb3 {[%clk 0:00:17]}  Bxf3 {[%clk 0:00:47]} 40. Ra1 {[%clk 0:00:06]}  d1=Q {[%clk 0:00:42]} 41. Rxd1 {[%clk 0:00:06]}  Bxd1 {[%clk 0:00:42]} 42. Rxc3 {[%clk 0:00:06]} 0-1


[Site "https://www.chess.com"]

[Event "Titled Tuesday Blitz January 03 Early 2023"]
[White "Le Ruyet, Leopold"]
[Black "Sailer, Mike"]
[WhiteFideId "645923"]
[BlackFideId "2012901"]
[WhiteElo "2245"]
[BlackElo "2109"]
[Result "0-1"]
[Round "04"]
[TimeControl "180+2"]
[Date "2023.01.03"]
[WhiteClock "0:00:03"]
[BlackClock "0:00:02"]

1. e4 {[%clk 0:02:54]}  d5 {[%clk 0:02:59]} 2. exd5 {[%clk 0:02:54]}  Qxd5 {[%clk 0:03:00]} 3. Nc3 {[%clk 0:02:54]}  Qd6 {[%clk 0:03:00]} 4. d4 {[%clk 0:02:53]}  Nf6 {[%clk 0:03:01]} 5. Nf3 {[%clk 0:02:53]}  c6 {[%clk 0:03:02]} 6. Bd3 {[%clk 0:02:54]}  Bg4 {[%clk 0:03:02]} 7. Ne4 {[%clk 0:02:54]}  Nxe4 {[%clk 0:03:02]} 8. Bxe4 {[%clk 0:02:54]}  Nd7 {[%clk 0:02:56]} 9. h3 {[%clk 0:02:51]}  Bh5 {[%clk 0:02:56]} 10. c3 {[%clk 0:02:51]}  Nf6 {[%clk 0:02:56]} 11. Bd3 {[%clk 0:02:50]}  e6 {[%clk 0:02:55]} 12. Bg5 {[%clk 0:02:47]}  Be7 {[%clk 0:02:56]} 13. Be2 {[%clk 0:02:35]}  O-O {[%clk 0:02:54]} 14. Ne5 {[%clk 0:02:35]}  Bxe2 {[%clk 0:02:53]} 15. Qxe2 {[%clk 0:02:36]}  c5 {[%clk 0:02:47]} 16. dxc5 {[%clk 0:02:22]}  Qxc5 {[%clk 0:02:37]} 17. Bxf6 {[%clk 0:02:21]}  Bxf6 {[%clk 0:02:36]} 18. Nd7 {[%clk 0:02:21]}  Qc6 {[%clk 0:02:36]} 19. Nxf8 {[%clk 0:02:15]}  Qxg2 {[%clk 0:02:37]} 20. O-O-O {[%clk 0:02:12]}  Rxf8 {[%clk 0:02:35]} 21. Rdg1 {[%clk 0:02:01]}  Qd5 {[%clk 0:02:25]} 22. Kb1 {[%clk 0:01:54]}  a5 {[%clk 0:02:25]} 23. Rd1 {[%clk 0:01:45]}  Qc5 {[%clk 0:02:21]} 24. Rd7 {[%clk 0:01:38]}  b5 {[%clk 0:02:20]} 25. Rhd1 {[%clk 0:01:33]}  b4 {[%clk 0:02:14]} 26. c4 {[%clk 0:01:33]}  a4 {[%clk 0:02:01]} 27. f4 {[%clk 0:01:14]}  a3 {[%clk 0:01:55]} 28. b3 {[%clk 0:01:13]}  g6 {[%clk 0:01:42]} 29. Rb7 {[%clk 0:01:06]}  Qf5+ {[%clk 0:01:39]} 30. Qc2 {[%clk 0:01:05]}  Qxf4 {[%clk 0:01:29]} 31. Rb5 {[%clk 0:00:38]}  Bg7 {[%clk 0:01:13]} 32. Rxb4 {[%clk 0:00:21]}  Qf6 {[%clk 0:01:13]} 33. Kc1 {[%clk 0:00:21]}  Qa1+ {[%clk 0:01:01]} 34. Kd2 {[%clk 0:00:21]}  Rd8+ {[%clk 0:00:49]} 35. Ke2 {[%clk 0:00:20]}  Qe5+ {[%clk 0:00:41]} 36. Kf1 {[%clk 0:00:20]}  Qf4+ {[%clk 0:00:28]} 37. Kg2 {[%clk 0:00:20]}  Qg5+ {[%clk 0:00:22]} 38. Kh1 {[%clk 0:00:19]}  Rxd1+ {[%clk 0:00:10]} 39. Qxd1 {[%clk 0:00:20]}  Be5 {[%clk 0:00:04]} 40. Qe2 {[%clk 0:00:12]}  Qg3 {[%clk 0:00:02]} 41. Qg2 {[%clk 0:00:05]}  Qe1+ {[%clk 0:00:02]} 42. Qg1 {[%clk 0:00:05]}  Qe4+ {[%clk 0:00:02]} 43. Qg2 {[%clk 0:00:05]}  Qe1+ {[%clk 0:00:02]} 44. Qg1 {[%clk 0:00:06]}  Qxb4 {[%clk 0:00:02]} 45. Qe3 {[%clk 0:00:06]}  Qd6 {[%clk 0:00:01]} 46. c5 {[%clk 0:00:05]}  Qd5+ {[%clk 0:00:01]} 47. Kg1 {[%clk 0:00:03]}  Bd4 {[%clk 0:00:02]} 0-1


[Site "https://www.chess.com"]

[Event "Titled Tuesday Blitz January 03 Early 2023"]
[White "Sadovsky, Artem"]
[Black "Fabris, Alberto"]
[WhiteFideId "4155840"]
[BlackFideId "801348"]
[WhiteElo "2276"]
[BlackElo "2230"]
[Result "1-0"]
[Round "04"]
[TimeControl "180+2"]
[Date "2023.01.03"]
[WhiteClock "0:03:06"]
[BlackClock "0:00:03"]

1. Nf3 {[%clk 0:03:00]}  Nf6 {[%clk 0:02:58]} 2. e3 {[%clk 0:03:01]}  b6 {[%clk 0:02:56]} 3. c4 {[%clk 0:03:02]}  Bb7 {[%clk 0:02:56]} 4. b3 {[%clk 0:03:03]}  e6 {[%clk 0:02:55]} 5. Bb2 {[%clk 0:03:04]}  Be7 {[%clk 0:02:55]} 6. Be2 {[%clk 0:03:04]}  O-O {[%clk 0:02:55]} 7. O-O {[%clk 0:03:05]}  d5 {[%clk 0:02:55]} 8. d3 {[%clk 0:03:06]}  c5 {[%clk 0:02:54]} 9. Nbd2 {[%clk 0:03:07]}  Nc6 {[%clk 0:02:53]} 10. Qc2 {[%clk 0:03:07]}  Rc8 {[%clk 0:02:52]} 11. Rad1 {[%clk 0:03:07]}  Qc7 {[%clk 0:02:51]} 12. cxd5 {[%clk 0:03:06]}  Nxd5 {[%clk 0:02:49]} 13. e4 {[%clk 0:03:07]}  Ndb4 {[%clk 0:02:47]} 14. Qb1 {[%clk 0:03:06]}  Rfd8 {[%clk 0:02:39]} 15. Nc4 {[%clk 0:03:06]}  b5 {[%clk 0:02:34]} 16. Nce5 {[%clk 0:03:05]}  Nxe5 {[%clk 0:02:34]} 17. Bxe5 {[%clk 0:03:05]}  Bd6 {[%clk 0:02:32]} 18. Bxd6 {[%clk 0:03:03]}  Qxd6 {[%clk 0:02:31]} 19. d4 {[%clk 0:03:04]}  c4 {[%clk 0:02:30]} 20. bxc4 {[%clk 0:03:03]}  bxc4 {[%clk 0:02:28]} 21. a3 {[%clk 0:03:03]}  c3 {[%clk 0:02:02]} 22. Qxb4 {[%clk 0:03:03]}  Bxe4 {[%clk 0:01:55]} 23. Qxd6 {[%clk 0:03:02]}  Rxd6 {[%clk 0:01:55]} 24. Ne5 {[%clk 0:03:03]}  Rcd8 {[%clk 0:01:39]} 25. f3 {[%clk 0:03:02]}  Bf5 {[%clk 0:01:36]} 26. Rc1 {[%clk 0:03:02]}  Rc8 {[%clk 0:00:59]} 27. g4 {[%clk 0:03:02]}  Bg6 {[%clk 0:00:58]} 28. Nxg6 {[%clk 0:03:02]}  hxg6 {[%clk 0:00:59]} 29. Rfd1 {[%clk 0:03:03]}  Rb6 {[%clk 0:00:50]} 30. Rd3 {[%clk 0:03:02]}  Rb3 {[%clk 0:00:49]} 31. Kf2 {[%clk 0:03:02]}  Rxa3 {[%clk 0:00:49]} 32. Ke3 {[%clk 0:03:02]}  a5 {[%clk 0:00:45]} 33. Rc2 {[%clk 0:03:02]}  Kf8 {[%clk 0:00:44]} 34. h4 {[%clk 0:03:03]}  Ke7 {[%clk 0:00:44]} 35. d5 {[%clk 0:03:03]}  a4 {[%clk 0:00:32]} 36. d6+ {[%clk 0:03:03]}  Kd8 {[%clk 0:00:32]} 37. f4 {[%clk 0:03:03]}  Rb3 {[%clk 0:00:28]} 38. Kd4 {[%clk 0:03:03]}  Rb4+ {[%clk 0:00:26]} 39. Ke3 {[%clk 0:03:03]}  Rb3 {[%clk 0:00:26]} 40. Rd4 {[%clk 0:03:04]}  a3 {[%clk 0:00:25]} 41. Ra4 {[%clk 0:03:04]}  Kd7 {[%clk 0:00:22]} 42. Bc4 {[%clk 0:03:04]}  Rb2 {[%clk 0:00:18]} 43. Rxc3 {[%clk 0:03:05]}  a2 {[%clk 0:00:16]} 44. Kd3 {[%clk 0:03:05]}  Kxd6 {[%clk 0:00:15]} 45. Rxa2 {[%clk 0:03:05]}  Rxa2 {[%clk 0:00:14]} 46. Bxa2 {[%clk 0:03:06]}  Rxc3+ {[%clk 0:00:13]} 47. Kxc3 {[%clk 0:03:07]}  f6 {[%clk 0:00:10]} 48. Kd4 {[%clk 0:03:06]}  Ke7 {[%clk 0:00:06]} 49. g5 {[%clk 0:03:06]}  Kf7 {[%clk 0:00:03]} 50. Bb1 {[%clk 0:03:06]} 1-0


[Site "https://www.chess.com"]

[Event "Titled Tuesday Blitz January 03 Early 2023"]
[White "Zherebtsova, Alexandra"]
[Black "Gutierrez Anaya, Yeison Joel"]
[WhiteFideId "24129518"]
[BlackFideId "3903273"]
[WhiteElo "2155"]
[BlackElo "2125"]
[Result "0-1"]
[Round "04"]
[TimeControl "180+2"]
[Date "2023.01.03"]
[WhiteClock "0:00:01"]
[BlackClock "0:00:02"]

1. d4 {[%clk 0:03:00]}  Nf6 {[%clk 0:02:56]} 2. Nf3 {[%clk 0:03:00]}  g6 {[%clk 0:02:56]} 3. c4 {[%clk 0:03:00]}  d5 {[%clk 0:02:55]} 4. e3 {[%clk 0:02:59]}  Bg7 {[%clk 0:02:54]} 5. Nc3 {[%clk 0:03:00]}  O-O {[%clk 0:02:54]} 6. Qb3 {[%clk 0:03:00]}  dxc4 {[%clk 0:02:25]} 7. Bxc4 {[%clk 0:03:01]}  c5 {[%clk 0:02:25]} 8. Ne5 {[%clk 0:03:01]}  e6 {[%clk 0:02:16]} 9. O-O {[%clk 0:02:59]}  cxd4 {[%clk 0:02:15]} 10. Rd1 {[%clk 0:02:58]}  Qc7 {[%clk 0:02:13]} 11. exd4 {[%clk 0:02:58]}  a6 {[%clk 0:02:11]} 12. Bf4 {[%clk 0:02:52]}  b5 {[%clk 0:02:05]} 13. Be2 {[%clk 0:02:49]}  Qe7 {[%clk 0:01:49]} 14. a4 {[%clk 0:02:43]}  b4 {[%clk 0:01:46]} 15. Na2 {[%clk 0:02:22]}  a5 {[%clk 0:01:47]} 16. Nc1 {[%clk 0:02:15]}  Nd5 {[%clk 0:01:42]} 17. Bg3 {[%clk 0:02:14]}  Bb7 {[%clk 0:01:42]} 18. Ncd3 {[%clk 0:02:14]}  Nc6 {[%clk 0:01:38]} 19. Nc5 {[%clk 0:01:57]}  Nxd4 {[%clk 0:01:36]} 20. Rxd4 {[%clk 0:01:51]}  Qxc5 {[%clk 0:01:36]} 21. Rc4 {[%clk 0:01:47]}  Qe7 {[%clk 0:01:29]} 22. Nc6 {[%clk 0:01:44]}  Qg5 {[%clk 0:01:18]} 23. Rac1 {[%clk 0:01:33]}  Rfc8 {[%clk 0:01:09]} 24. h4 {[%clk 0:01:30]}  Qd2 {[%clk 0:00:53]} 25. R4c2 {[%clk 0:01:23]}  Rxc6 {[%clk 0:00:31]} 26. Rxd2 {[%clk 0:01:19]}  Rxc1+ {[%clk 0:00:32]} 27. Rd1 {[%clk 0:01:08]}  Rac8 {[%clk 0:00:32]} 28. Kh2 {[%clk 0:01:07]}  R1c2 {[%clk 0:00:32]} 29. Bf3 {[%clk 0:00:44]}  Rxb2 {[%clk 0:00:31]} 30. Qd3 {[%clk 0:00:44]}  Rbc2 {[%clk 0:00:27]} 31. Rb1 {[%clk 0:00:36]}  R2c5 {[%clk 0:00:23]} 32. Bd6 {[%clk 0:00:31]}  R5c6 {[%clk 0:00:05]} 33. Bg3 {[%clk 0:00:18]}  Ba6 {[%clk 0:00:06]} 34. Qd1 {[%clk 0:00:16]}  Bc4 {[%clk 0:00:07]} 35. Rc1 {[%clk 0:00:15]}  Nc3 {[%clk 0:00:07]} 36. Qe1 {[%clk 0:00:14]}  Rc5 {[%clk 0:00:06]} 37. Bd6 {[%clk 0:00:13]}  Rf5 {[%clk 0:00:05]} 38. Bg4 {[%clk 0:00:13]}  Rd5 {[%clk 0:00:05]} 39. Bg3 {[%clk 0:00:11]}  Rdd8 {[%clk 0:00:04]} 40. Bf3 {[%clk 0:00:11]}  b3 {[%clk 0:00:04]} 41. Bb7 {[%clk 0:00:09]}  b2 {[%clk 0:00:04]} 42. Bxc8 {[%clk 0:00:09]}  bxc1=Q {[%clk 0:00:04]} 43. Qxc1 {[%clk 0:00:09]}  Rxc8 {[%clk 0:00:03]} 44. Qa3 {[%clk 0:00:09]}  Bd5 {[%clk 0:00:03]} 45. Qe7 {[%clk 0:00:08]}  Ne4 {[%clk 0:00:02]} 46. Bf4 {[%clk 0:00:06]}  Ra8 {[%clk 0:00:03]} 47. Qc7 {[%clk 0:00:06]}  Bf6 {[%clk 0:00:03]} 48. h5 {[%clk 0:00:05]}  Kg7 {[%clk 0:00:03]} 49. h6+ {[%clk 0:00:05]}  Kg8 {[%clk 0:00:04]} 50. Qb6 {[%clk 0:00:05]}  Be7 {[%clk 0:00:02]} 51. Qd4 {[%clk 0:00:04]}  Bf8 {[%clk 0:00:02]} 52. Be5 {[%clk 0:00:04]}  f6 {[%clk 0:00:01]} 53. Bxf6 {[%clk 0:00:03]}  Nxf6 {[%clk 0:00:02]} 54. Qxf6 {[%clk 0:00:03]}  Rb8 {[%clk 0:00:02]} 55. Qc3 {[%clk 0:00:02]}  Rb4 {[%clk 0:00:03]} 56. Qc2 {[%clk 0:00:01]}  Rh4+ {[%clk 0:00:03]} 57. Kg1 {[%clk 0:00:01]}  Bxh6 {[%clk 0:00:03]} 58. g3 {[%clk 0:00:01]}  Rh1# {[%clk 0:00:02]} 0-1


[Site "https://www.chess.com"]

[Event "Titled Tuesday Blitz January 03 Early 2023"]
[White "Suduvasachmatai"]
[Black "Kaplan, Avi Harrison"]
[BlackFideId "30934559"]
[WhiteElo "2107"]
[BlackElo "2146"]
[Result "0-1"]
[Round "04"]
[TimeControl "180+2"]
[Date "2023.01.03"]
[WhiteClock "0:00:57"]
[BlackClock "0:01:24"]

1. e4 {[%clk 0:03:00]}  e5 {[%clk 0:02:59]} 2. Nf3 {[%clk 0:02:59]}  d6 {[%clk 0:02:59]} 3. d4 {[%clk 0:02:59]}  Nd7 {[%clk 0:02:59]} 4. Nc3 {[%clk 0:02:58]}  Ngf6 {[%clk 0:02:59]} 5. Bg5 {[%clk 0:02:57]}  Be7 {[%clk 0:02:59]} 6. dxe5 {[%clk 0:02:53]}  dxe5 {[%clk 0:02:59]} 7. Bc4 {[%clk 0:02:52]}  c6 {[%clk 0:02:58]} 8. O-O {[%clk 0:02:50]}  Qc7 {[%clk 0:02:58]} 9. h3 {[%clk 0:02:49]}  h6 {[%clk 0:02:57]} 10. Bh4 {[%clk 0:02:45]}  O-O {[%clk 0:02:53]} 11. Re1 {[%clk 0:02:40]}  b5 {[%clk 0:02:47]} 12. Bd3 {[%clk 0:02:35]}  Rd8 {[%clk 0:02:47]} 13. Ne2 {[%clk 0:02:28]}  Nc5 {[%clk 0:02:37]} 14. Ng3 {[%clk 0:02:26]}  g5 {[%clk 0:02:26]} 15. Nxg5 {[%clk 0:02:20]}  hxg5 {[%clk 0:02:27]} 16. Bxg5 {[%clk 0:02:20]}  Nh7 {[%clk 0:02:20]} 17. Be3 {[%clk 0:02:12]}  Nxd3 {[%clk 0:02:19]} 18. cxd3 {[%clk 0:02:10]}  Bg5 {[%clk 0:02:17]} 19. Qh5 {[%clk 0:02:02]}  Qe7 {[%clk 0:02:05]} 20. Nf5 {[%clk 0:01:57]}  Bxf5 {[%clk 0:02:04]} 21. exf5 {[%clk 0:01:57]}  Rxd3 {[%clk 0:02:01]} 22. Qg4 {[%clk 0:01:53]}  Kh8 {[%clk 0:01:57]} 23. Qe4 {[%clk 0:01:39]}  Rad8 {[%clk 0:01:39]} 24. Bxg5 {[%clk 0:01:30]}  Nxg5 {[%clk 0:01:26]} 25. Qh4+ {[%clk 0:01:28]}  Kg7 {[%clk 0:01:26]} 26. f4 {[%clk 0:00:57]}  Nf3+ {[%clk 0:01:24]} 0-1


[Site "https://www.chess.com"]

[Event "Titled Tuesday Blitz January 03 Early 2023"]
[White "Ljukin, Sergei"]
[Black "Cardozo Munar, Carlos Eduardo"]
[WhiteFideId "14102200"]
[BlackFideId "4409477"]
[WhiteElo "2362"]
[BlackElo "2043"]
[Result "1-0"]
[Round "04"]
[TimeControl "180+2"]
[Date "2023.01.03"]
[WhiteClock "0:00:03"]
[BlackClock "0:00:05"]

1. e4 {[%clk 0:02:39]}  e6 {[%clk 0:02:59]} 2. d4 {[%clk 0:02:38]}  d5 {[%clk 0:02:58]} 3. Nc3 {[%clk 0:02:39]}  Nf6 {[%clk 0:02:56]} 4. Bg5 {[%clk 0:02:38]}  Be7 {[%clk 0:02:56]} 5. e5 {[%clk 0:02:38]}  Nfd7 {[%clk 0:02:55]} 6. h4 {[%clk 0:02:38]}  Bxg5 {[%clk 0:02:55]} 7. hxg5 {[%clk 0:02:39]}  Qxg5 {[%clk 0:02:56]} 8. Nh3 {[%clk 0:02:39]}  Qh4 {[%clk 0:02:56]} 9. Qd2 {[%clk 0:02:33]}  a6 {[%clk 0:02:55]} 10. O-O-O {[%clk 0:02:33]}  h6 {[%clk 0:02:52]} 11. Be2 {[%clk 0:02:13]}  Nc6 {[%clk 0:02:51]} 12. f4 {[%clk 0:01:55]}  Qe7 {[%clk 0:02:47]} 13. f5 {[%clk 0:01:38]}  Nb6 {[%clk 0:02:37]} 14. g4 {[%clk 0:01:35]}  exf5 {[%clk 0:02:34]} 15. Nf4 {[%clk 0:01:34]}  Qd7 {[%clk 0:01:49]} 16. gxf5 {[%clk 0:01:28]}  Qxf5 {[%clk 0:01:38]} 17. Nfxd5 {[%clk 0:01:24]}  Nxd5 {[%clk 0:01:39]} 18. Nxd5 {[%clk 0:01:24]}  Qd7 {[%clk 0:01:40]} 19. Bf3 {[%clk 0:01:07]}  Ne7 {[%clk 0:01:39]} 20. Nxe7 {[%clk 0:00:23]}  Qxe7 {[%clk 0:01:40]} 21. Rdg1 {[%clk 0:00:23]}  g6 {[%clk 0:00:45]} 22. Rxh6 {[%clk 0:00:20]}  Rxh6 {[%clk 0:00:45]} 23. Qxh6 {[%clk 0:00:20]}  c6 {[%clk 0:00:42]} 24. d5 {[%clk 0:00:15]}  cxd5 {[%clk 0:00:34]} 25. Bxd5 {[%clk 0:00:08]}  Bf5 {[%clk 0:00:14]} 26. Qh8+ {[%clk 0:00:06]}  Qf8 {[%clk 0:00:13]} 27. Qf6 {[%clk 0:00:06]}  Qe7 {[%clk 0:00:08]} 28. Qb6 {[%clk 0:00:05]}  Rd8 {[%clk 0:00:08]} 29. Bxb7 {[%clk 0:00:05]}  Qxe5 {[%clk 0:00:05]} 30. Bc6+ {[%clk 0:00:04]}  Bd7 {[%clk 0:00:05]} 31. Bxd7+ {[%clk 0:00:03]}  Rxd7 {[%clk 0:00:05]} 32. Kb1 {[%clk 0:00:02]}  Kf8 {[%clk 0:00:04]} 33. a3 {[%clk 0:00:02]}  Kg7 {[%clk 0:00:04]} 34. Qxa6 {[%clk 0:00:02]}  Re7 {[%clk 0:00:04]} 35. Qf1 {[%clk 0:00:02]}  Re6 {[%clk 0:00:04]} 36. Qf2 {[%clk 0:00:02]}  Rf6 {[%clk 0:00:05]} 37. Qg2 {[%clk 0:00:03]}  Qf5 {[%clk 0:00:05]} 38. Rh1 {[%clk 0:00:03]}  Re6 {[%clk 0:00:05]} 39. Qh2 {[%clk 0:00:04]}  Kf6 {[%clk 0:00:04]} 40. Qh8+ {[%clk 0:00:04]}  Ke7 {[%clk 0:00:04]} 41. Qc8 {[%clk 0:00:04]}  Kf6 {[%clk 0:00:05]} 42. Qd8+ {[%clk 0:00:03]}  Kg7 {[%clk 0:00:05]} 43. Qh8# {[%clk 0:00:03]} 1-0


[Site "https://www.chess.com"]